bitfinex/quotes_BTCUSD_20250519
["timestamp","ask_amount","ask_price","bid_price","bid_amount"]
[1747626851970,0.21243657,103560.0,103550.0,0.3672745]
[1747626852413,0.21243657,103560.0,103550.0,0.57007479]
[1747626852824,0.21258076,103560.0,103550.0,0.57007479]
[1747626853039,0.00014419,103560.0,103550.0,0.69007479]
[1747626853250,0.01945526,103560.0,103550.0,0.70938809]
[1747626853475,0.01945563,103560.0,103550.0,0.70938809]
[1747626854109,0.02911168,103560.0,103550.0,0.70938809]
[1747626854538,0.00014419,103560.0,103550.0,0.70938809]
[1747626854740,0.0291115,103560.0,103550.0,0.70938809]
[1747626854944,0.03876764,103560.0,103550.0,0.70938809]
[1747626855159,0.0291115,103560.0,103550.0,0.70938809]
[1747626855366,0.43185865,103560.0,103550.0,0.01761752]
[1747626855586,0.63308456,103560.0,103550.0,0.01761752]
[1747626856822,0.63508456,103560.0,103550.0,0.01761752]
[1747626857033,0.43344456,103560.0,103550.0,0.01761752]
[1747626857242,0.37958879,103560.0,103550.0,0.01761752]
[1747626857443,0.83228879,103560.0,103550.0,0.01761752]
[1747626857647,0.42528879,103560.0,103550.0,0.01761752]
[1747626857824,0.83228879,103560.0,103550.0,0.01761752]
[1747626858685,0.20280038,103550.0,103540.0,0.34]
[1747626858866,0.22610038,103550.0,103540.0,0.34]
[1747626859326,0.21247732,103540.0,103530.0,0.05119054]
[1747626859436,0.56996426,103540.0,103530.0,0.03187267]
[1747626859641,0.55064946,103540.0,103530.0,0.00754778]
[1747626860077,0.50344946,103540.0,103530.0,0.00754778]
[1747626860285,0.01931666,103530.0,103520.0,0.23188772]
[1747626860513,0.02897532,103530.0,103520.0,0.22222841]
[1747626860712,0.63985479,103530.0,103520.0,0.2222286]
[1747626860921,0.63985479,103530.0,103520.0,0.24154731]
[1747626861137,0.63997479,103530.0,103520.0,0.231888]
[1747626861340,0.63031697,103530.0,103520.0,6e-05]
[1747626861543,0.62065831,103530.0,103520.0,6e-05]
[1747626862788,0.61099956,103530.0,103520.0,6e-05]
[1747626863024,0.61099956,103530.0,103520.0,0.00608732]
[1747626863186,0.62065812,103530.0,103520.0,0.20894648]
[1747626863397,0.63031715,103530.0,103520.0,0.20894648]
[1747626863588,0.63031715,103530.0,103520.0,0.21860607]
[1747626863775,0.63031715,103530.0,103520.0,0.21860616]
[1747626863976,0.63031715,103530.0,103520.0,0.01574719]
[1747626864171,0.62065859,103530.0,103520.0,0.01574719]
[1747626864444,0.62065859,103530.0,103520.0,0.00608732]
[1747626864621,0.61199975,103530.0,103520.0,0.00608732]
[1747626865779,0.61199975,103530.0,103520.0,0.01574728]
[1747626866003,0.61199975,103530.0,103520.0,0.00608732]
[1747626866209,0.40912,103530.0,103520.0,0.61446547]
[1747626866405,0.001,103530.0,103520.0,0.61446547]
[1747626866647,0.001,103530.0,103520.0,0.73446547]
[1747626867007,0.001,103530.0,103520.0,0.71206547]
[1747626867251,0.01065819,103530.0,103520.0,0.71206547]
[1747626867457,0.01065819,103530.0,103520.0,0.68826547]
[1747626867811,0.02031657,103530.0,103520.0,0.68826547]
[1747626868015,0.01065819,103530.0,103520.0,0.68826547]
[1747626868159,0.001,103530.0,103520.0,0.68826547]
[1747626868780,0.001,103530.0,103520.0,0.70588299]
[1747626870799,0.001,103530.0,103520.0,0.72868299]
[1747626871185,0.001,103530.0,103520.0,0.75048299]
[1747626871682,0.001,103530.0,103520.0,0.74293521]
[1747626871887,0.2042,103550.0,103540.0,0.56213524]
[1747626872378,0.21385633,103550.0,103540.0,0.349658]
[1747626872586,0.22351284,103550.0,103540.0,0.36997682]
[1747626873349,0.23316963,103550.0,103540.0,0.39895]
[1747626873570,0.23316945,103550.0,103540.0,0.39895]
[1747626873829,0.23316945,103550.0,103540.0,0.40497732]
[1747626874618,0.24382615,103550.0,103540.0,0.39531987]
[1747626874820,0.22451284,103550.0,103540.0,0.40497732]
[1747626875697,0.23516963,103550.0,103540.0,0.40497732]
[1747626875906,0.23516954,103550.0,103540.0,0.40497732]
[1747626876339,0.22551284,103550.0,103540.0,0.52497732]
[1747626876526,0.23516954,103550.0,103540.0,0.52497732]
[1747626878321,0.03096954,103550.0,103540.0,0.52497732]
[1747626878520,0.03096963,103550.0,103540.0,0.52497732]
[1747626879492,0.002,103550.0,103540.0,0.56987732]
[1747626881102,0.002,103550.0,103540.0,0.57741312]
[1747626883077,0.002,103550.0,103540.0,1.45787637]
[1747626883287,0.002,103550.0,103540.0,1.48490189]
[1747626883493,0.002,103550.0,103540.0,1.24059889]
[1747626883808,0.27969859,103560.0,103550.0,0.22211377]
[1747626883936,0.28935417,103560.0,103550.0,0.22211377]
[1747626884151,0.29759045,103560.0,103550.0,0.22211396]
[1747626884357,0.29759036,103560.0,103550.0,0.35177057]
[1747626884713,0.28793459,103560.0,103550.0,0.35177057]
[1747626884918,0.28793459,103560.0,103550.0,0.35779789]
[1747626885170,0.29759045,103560.0,103550.0,0.35779789]
[1747626885392,0.29759036,103560.0,103550.0,0.35779789]
[1747626885642,0.29759045,103560.0,103550.0,0.34814128]
[1747626885859,0.29859045,103560.0,103550.0,0.34814128]
[1747626886017,0.29859045,103560.0,103550.0,0.33848458]
[1747626886245,0.29859045,103560.0,103550.0,0.34814128]
[1747626886429,0.29859045,103560.0,103550.0,0.35779789]
[1747626886647,0.29859045,103560.0,103550.0,0.35820479]
[1747626887392,0.29959045,103560.0,103550.0,0.3678614]
[1747626887916,0.29959054,103560.0,103550.0,0.35820479]
[1747626888170,0.29899045,103560.0,103550.0,0.3678614]
[1747626889038,0.29899045,103560.0,103550.0,0.35820479]
[1747626889499,0.3086465,103560.0,103550.0,0.34854809]
[1747626889710,0.29899045,103560.0,103550.0,0.34854809]
[1747626889912,0.29899045,103560.0,103550.0,0.35820479]
[1747626890130,0.07689859,103560.0,103550.0,0.3678613]
[1747626890342,0.30864622,103560.0,103550.0,0.34854809]
[1747626890544,0.29899017,103560.0,103550.0,0.3582047]
[1747626890949,0.09620965,103560.0,103550.0,0.36786121]
[1747626891972,0.01165539,103560.0,103550.0,0.36786121]
[1747626892177,0.23374763,103560.0,103550.0,0.35820498]
[1747626892382,0.22409158,103560.0,103550.0,0.36786159]
[1747626892563,0.22409149,103560.0,103550.0,0.3775181]
[1747626893429,0.22409149,103560.0,103550.0,0.36786159]
[1747626893574,0.23374744,103560.0,103550.0,0.35820498]
[1747626893782,0.23374744,103560.0,103550.0,0.36786159]
[1747626893981,0.23374744,103560.0,103550.0,0.35820498]
[1747626894737,0.23374735,103560.0,103550.0,0.35820498]
[1747626894890,0.23374791,103560.0,103550.0,0.35820517]
[1747626895232,0.24340396,103560.0,103550.0,0.34854828]
[1747626895396,0.24340396,103560.0,103550.0,0.35820507]
[1747626895601,0.24340396,103560.0,103550.0,0.36786177]
[1747626895799,0.23374791,103560.0,103550.0,0.36786177]
[1747626896852,0.24340396,103560.0,103550.0,0.35820507]
[1747626897398,0.01165558,103560.0,103550.0,0.36786158]
[1747626897632,0.02131135,103560.0,103550.0,0.36786158]
[1747626898319,0.01165558,103560.0,103550.0,0.36786158]
[1747626898653,0.02131135,103560.0,103550.0,0.36786158]
[1747626899063,0.01165558,103560.0,103550.0,0.36786158]
[1747626899264,0.02131097,103560.0,103550.0,0.36786158]
[1747626899425,0.01165539,103560.0,103550.0,0.39491466]
[1747626899835,0.02131106,103560.0,103550.0,0.39491466]
[1747626900416,0.03096692,103560.0,103550.0,0.39491466]
[1747626900841,0.22409176,103560.0,103550.0,0.37519464]
[1747626901020,0.22409176,103560.0,103550.0,0.39450776]
[1747626901196,0.22409167,103560.0,103550.0,0.39450776]
[1747626901408,0.22409167,103560.0,103550.0,0.38485125]
[1747626901783,0.21926691,103560.0,103550.0,0.39450776]
[1747626902164,0.02614216,103560.0,103550.0,0.39450776]
[1747626902367,0.219267,103560.0,103550.0,0.38485125]
[1747626902594,0.0164863,103560.0,103550.0,0.39450776]
[1747626902799,0.21926691,103560.0,103550.0,0.38485125]
[1747626903183,0.33379115,103560.0,103550.0,0.12602732]
[1747626903545,0.53519115,103560.0,103550.0,0.00602732]
[1747626903971,0.53519115,103560.0,103550.0,0.34602732]
[1747626904176,0.63250055,103560.0,103550.0,0.00602732]
[1747626905709,1.04938055,103560.0,103550.0,0.00602732]
[1747626907318,1.74778055,103560.0,103550.0,0.00602732]
[1747626907676,0.25051997,103540.0,103530.0,0.00602732]
[1747626907874,0.75070937,103540.0,103530.0,0.00602732]
[1747626908279,0.75066937,103540.0,103530.0,0.00602732]
[1747626909311,0.25153956,103530.0,103520.0,0.02372412]
[1747626909469,0.34884896,103530.0,103520.0,0.02372412]
[1747626911077,0.34884896,103530.0,103520.0,0.00608732]
[1747626912910,0.42420336,103530.0,103520.0,0.00608732]
[1747626913158,0.62564336,103530.0,103520.0,0.00608732]
[1747626913336,0.55028896,103530.0,103520.0,0.00608732]
[1747626913942,0.52558896,103530.0,103520.0,6e-05]
[1747626914548,0.54838896,103530.0,103520.0,6e-05]
[1747626914756,0.34694896,103530.0,103520.0,6e-05]
[1747626914956,0.74986896,103530.0,103520.0,6e-05]
[1747626916798,0.74996896,103530.0,103520.0,6e-05]
[1747626917356,0.75962771,103530.0,103520.0,6e-05]
[1747626917556,0.01931759,103530.0,103520.0,0.2222388]
[1747626917830,0.62507725,103530.0,103520.0,0.55257921]
[1747626917989,0.6154185,103530.0,103520.0,0.55257921]
[1747626918156,0.6154185,103530.0,103520.0,0.34006]
[1747626918389,0.60575966,103530.0,103520.0,0.34006]
[1747626918591,0.60575966,103530.0,103520.0,0.35573973]
[1747626919172,0.60575966,103530.0,103520.0,0.47573973]
[1747626920690,0.60575966,103530.0,103520.0,0.35573973]
[1747626921047,0.60575966,103530.0,103520.0,0.54893911]
[1747626921253,0.60575966,103530.0,103520.0,0.66893911]
[1747626921496,0.60575966,103530.0,103520.0,0.67859889]
[1747626921648,0.60575966,103530.0,103520.0,0.66893911]
[1747626922052,0.60575966,103530.0,103520.0,0.47573973]
[1747626922848,0.60575966,103530.0,103520.0,0.67859898]
[1747626923266,0.20283966,103530.0,103520.0,0.67859898]
[1747626923485,0.40431966,103530.0,103520.0,0.67859898]
[1747626923669,0.40431966,103530.0,103520.0,0.68825866]
[1747626923906,0.2161434,103550.0,103540.0,0.56213524]
[1747626923907,0.06481312,103550.0,103540.0,0.56213524]
[1747626924229,0.03862698,103550.0,103540.0,0.55247779]
[1747626924430,0.22452833,103550.0,103540.0,0.54282006]
[1747626924546,0.22211396,103550.0,103540.0,0.55247797]
[1747626924748,0.22211396,103550.0,103540.0,0.55849774]
[1747626924974,0.22211396,103550.0,103540.0,0.56815556]
[1747626925177,0.35596666,103550.0,103540.0,0.00601977]
[1747626925380,0.35896666,103550.0,103540.0,0.00601977]
[1747626925785,0.36196666,103550.0,103540.0,0.00601977]
[1747626927255,0.25949812,103530.0,103520.0,0.00607977]
[1747626927434,0.75964752,103530.0,103520.0,0.00607977]
[1747626927579,0.66233812,103530.0,103520.0,0.55859861]
[1747626927786,0.61533812,103530.0,103520.0,0.55859861]
[1747626928444,0.60567956,103530.0,103520.0,0.54893902]
[1747626928602,0.60567956,103530.0,103520.0,0.5585988]
[1747626928802,0.60567956,103530.0,103520.0,0.57791807]
[1747626928988,0.60567956,103530.0,103520.0,0.70757757]
[1747626929182,0.60567956,103530.0,103520.0,0.68825848]
[1747626929387,0.20283956,103530.0,103520.0,0.68825848]
[1747626930008,0.0193174,103530.0,103520.0,0.69791788]
[1747626930244,0.02897643,103530.0,103520.0,0.70757738]
[1747626930418,0.40284,103540.0,103530.0,0.53318072]
[1747626930619,0.63463278,103540.0,103530.0,0.55249822]
[1747626930859,0.62497579,103540.0,103530.0,0.54283956]
[1747626931203,0.77008519,103540.0,103530.0,0.34]
[1747626931555,0.25063956,103530.0,103520.0,0.01363822]
[1747626931754,0.34794896,103530.0,103520.0,0.35363822]
[1747626932843,0.34794896,103530.0,103520.0,0.01363822]
[1747626933050,0.42330336,103530.0,103520.0,0.01363822]
[1747626933212,0.62470336,103530.0,103520.0,0.01363822]
[1747626934233,0.62470336,103530.0,103520.0,0.00607977]
[1747626934595,0.57470336,103530.0,103520.0,0.00607977]
[1747626934811,0.5843622,103530.0,103520.0,0.00607977]
[1747626935006,0.3829622,103530.0,103520.0,0.00607977]
[1747626935211,0.5843622,103530.0,103520.0,0.00607977]
[1747626935772,0.59879948,103530.0,103520.0,0.00607977]
[1747626936470,0.59879948,103530.0,103520.0,0.34607977]
[1747626937695,0.7104478,103530.0,103520.0,0.34607977]
[1747626940413,0.72010655,103530.0,103520.0,0.53927915]
[1747626940620,0.47090655,103530.0,103520.0,0.55859861]
[1747626940913,0.70208896,103530.0,103520.0,0.34607977]
[1747626941849,0.70208896,103530.0,103520.0,0.00607977]
[1747626942040,0.70208896,103530.0,103520.0,0.34607977]
[1747626942170,0.50068896,103530.0,103520.0,0.34607977]
[1747626942373,0.45158896,103530.0,103520.0,0.34607977]
[1747626942587,0.0973094,103530.0,103520.0,0.56825792]
[1747626942787,0.20144,103530.0,103520.0,0.56825792]
[1747626943015,0.23041503,103530.0,103520.0,0.61525792]
[1747626943191,0.24973262,103530.0,103520.0,0.61525792]
[1747626943370,0.23041503,103530.0,103520.0,0.61525792]
[1747626943604,0.20144,103530.0,103520.0,0.61525792]
[1747626943795,0.22075666,103530.0,103520.0,0.61525792]
[1747626944058,0.02897532,103530.0,103520.0,0.61525792]
[1747626944464,0.02897532,103530.0,103520.0,0.64235061]
[1747626945145,0.21491308,103530.0,103520.0,0.37317246]
[1747626945342,0.21491308,103530.0,103520.0,0.34607977]
[1747626945343,0.21249822,103530.0,103520.0,0.34607977]
[1747626945880,0.21249822,103530.0,103520.0,0.35615812]
[1747626946498,0.25889822,103530.0,103520.0,0.35615812]
[1747626946904,0.21249822,103530.0,103520.0,0.35615812]
[1747626947312,0.55760762,103530.0,103520.0,0.35615812]
[1747626947709,0.51120762,103530.0,103520.0,0.35615812]
[1747626948604,0.30980762,103530.0,103520.0,0.35615812]
[1747626948847,0.71260762,103530.0,103520.0,0.35615812]
[1747626949518,0.71260762,103530.0,103520.0,0.35366926]
[1747626950421,0.76090762,103530.0,103520.0,0.35366926]
[1747626950645,0.20282127,103540.0,103530.0,0.34965903]
[1747626950849,0.61527742,103540.0,103530.0,0.54283956]
[1747626951061,0.21247788,103540.0,103530.0,0.34]
[1747626951276,0.43817788,103540.0,103530.0,0.34]
[1747626951830,0.41387788,103540.0,103530.0,0.34]
[1747626952030,0.41387788,103540.0,103530.0,0.34965884]
[1747626952269,0.22213598,103540.0,103530.0,0.34965894]
[1747626952471,0.42353598,103540.0,103530.0,0.34]
[1747626952676,0.42353598,103540.0,103530.0,0.35360926]
[1747626953228,0.22213598,103540.0,103530.0,0.35360926]
[1747626953422,0.42553598,103540.0,103530.0,0.35360926]
[1747626953568,0.41787816,103540.0,103530.0,0.35360926]
[1747626953763,0.41787816,103540.0,103530.0,0.36326829]
[1747626954027,0.41787816,103540.0,103530.0,0.55644901]
[1747626954260,0.004,103540.0,103530.0,0.63302499]
[1747626954641,0.004,103540.0,103530.0,0.66010998]
[1747626954838,0.01365726,103540.0,103530.0,0.78010998]
[1747626955415,0.004,103540.0,103530.0,0.77252049]
[1747626955802,0.01365735,103540.0,103530.0,0.77252049]
[1747626956008,0.01365726,103540.0,103530.0,0.77252049]
[1747626956184,0.21243619,103560.0,103550.0,0.22210114]
[1747626956391,0.01931294,103550.0,103540.0,0.5999513]
[1747626956617,0.21245634,103550.0,103540.0,0.4145585]
[1747626956825,0.21245708,103550.0,103540.0,0.68987866]
[1747626957027,0.22211425,103550.0,103540.0,0.67247816]
[1747626957227,0.21245708,103550.0,103540.0,0.68213607]
[1747626957435,0.21245708,103550.0,103540.0,0.46]
[1747626957641,0.20280038,103550.0,103540.0,0.66282006]
[1747626957837,0.20280038,103550.0,103540.0,0.47612546]
[1747626958087,0.20280038,103550.0,103540.0,0.68860344]
[1747626958288,0.20280038,103550.0,103540.0,0.69826135]
[1747626958598,0.20280038,103550.0,103540.0,0.68860353]
[1747626958802,0.22211425,103550.0,103540.0,0.69826126]
[1747626959208,0.22211425,103550.0,103540.0,0.70791889]
[1747626959565,0.22211425,103550.0,103540.0,0.69826135]
[1747626959744,0.22211425,103550.0,103540.0,0.69926135]
[1747626960171,0.22211425,103550.0,103540.0,0.70891908]
[1747626960481,0.22211425,103550.0,103540.0,0.69926135]
[1747626960706,0.21245755,103550.0,103540.0,0.47712546]
[1747626960847,0.24880057,103550.0,103540.0,0.47712546]
[1747626961422,0.34610997,103550.0,103540.0,0.48470045]
[1747626961581,0.74874997,103550.0,103540.0,0.02470045]
[1747626963996,0.74874997,103550.0,103540.0,0.00701977]
[1747626971405,0.74874997,103550.0,103540.0,0.00601977]
[1747626971742,0.74974997,103550.0,103540.0,0.00601977]
[1747626972910,0.20282016,103540.0,103530.0,0.36325379]
[1747626973130,0.01931582,103540.0,103530.0,0.57575173]
[1747626973295,0.21247788,103540.0,103530.0,0.56609326]
[1747626973519,0.21247788,103540.0,103530.0,0.35359476]
[1747626973720,0.20282006,103540.0,103530.0,0.35359476]
[1747626974127,0.40414006,103540.0,103530.0,0.54677548]
[1747626974295,0.40414006,103540.0,103530.0,0.55743432]
[1747626974505,0.40414006,103540.0,103530.0,0.35459476]
[1747626974506,0.40402795,103540.0,103530.0,0.35459476]
[1747626974716,1.54070194,103540.0,103530.0,0.01459476]
[1747626974940,1.51372586,103540.0,103530.0,0.01459476]
[1747626975897,1.51372586,103540.0,103530.0,0.00757499]
[1747626976030,0.24973956,103530.0,103520.0,6e-05]
[1747626976236,1.16664896,103530.0,103520.0,6e-05]
[1747626978069,1.16864896,103530.0,103520.0,6e-05]
[1747626978709,1.17164896,103530.0,103520.0,6e-05]
[1747626978915,1.18130771,103530.0,103520.0,6e-05]
[1747626979134,1.03713831,103530.0,103520.0,0.34971996]
[1747626979298,1.02747956,103530.0,103520.0,0.34006]
[1747626980074,0.99882336,103530.0,103520.0,6e-05]
[1747626981236,1.17264896,103530.0,103520.0,6e-05]
[1747626981624,1.17154896,103530.0,103520.0,6e-05]
[1747626981830,1.12474896,103530.0,103520.0,6e-05]
[1747626982080,0.92346896,103530.0,103520.0,6e-05]
[1747626982278,1.12478896,103530.0,103520.0,6e-05]
[1747626984401,1.14808896,103530.0,103520.0,6e-05]
[1747626984604,1.17158896,103530.0,103520.0,6e-05]
[1747626986135,0.76894896,103530.0,103520.0,6e-05]
[1747626986341,0.84551715,103530.0,103520.0,0.34971996]
[1747626986521,0.83585859,103530.0,103520.0,0.34006]
[1747626986719,0.82619975,103530.0,103520.0,0.34006]
[1747626987330,0.82619975,103530.0,103520.0,0.46006]
[1747626987974,0.63301819,103530.0,103520.0,0.67863389]
[1747626988119,0.43817497,103530.0,103520.0,0.71607439]
[1747626988321,0.42851678,103530.0,103520.0,0.40287519]
[1747626988526,0.42851678,103530.0,103520.0,0.41253506]
[1747626988731,0.42851678,103530.0,103520.0,0.53253506]
[1747626988914,0.42551678,103530.0,103520.0,0.53253506]
[1747626989124,0.42551678,103530.0,103520.0,0.54219474]
[1747626989329,0.43617581,103530.0,103520.0,0.74505371]
[1747626989535,0.23481581,103530.0,103520.0,0.73539403]
[1747626989741,0.23481498,103530.0,103520.0,0.75262852]
[1747626990222,0.23281498,103530.0,103520.0,0.75262852]
[1747626990648,0.23381498,103530.0,103520.0,0.74296902]
[1747626991081,0.23181498,103530.0,103520.0,0.74296902]
[1747626991496,0.23181498,103530.0,103520.0,0.75462852]
[1747626992233,0.23181498,103530.0,103520.0,0.74496902]
[1747626992455,0.23181498,103530.0,103520.0,0.75507471]
[1747626992675,0.21093735,103540.0,103530.0,0.54283956]
[1747626992901,0.4330725,103540.0,103530.0,0.55249822]
[1747626993105,0.4330725,103540.0,103530.0,0.5621566]
[1747626993106,0.2205948,103540.0,103530.0,0.5621566]
[1747626993328,0.20128,103540.0,103530.0,0.6092566]
[1747626993546,0.22059498,103540.0,103530.0,0.6092566]
[1747626993761,0.22059489,103540.0,103530.0,0.6092566]
[1747626993986,0.21093726,103540.0,103530.0,0.73531183]
[1747626994205,0.20128,103540.0,103530.0,0.73531183]
[1747626994678,0.20228,103540.0,103530.0,0.73531183]
[1747626995199,0.001,103540.0,103530.0,0.73531183]
[1747626995567,0.001,103540.0,103530.0,2.68740408]
[1747626995770,0.001,103540.0,103530.0,1.58237885]
[1747626995992,0.01931284,103550.0,103540.0,0.22213524]
[1747626996323,0.48907077,103560.0,103550.0,0.56211407]
[1747626996512,0.0753544,103560.0,103550.0,0.57177058]
[1747626996713,0.08500989,103560.0,103550.0,0.68211407]
[1747626996890,0.0753544,103560.0,103550.0,0.73707058]
[1747626997096,0.0753544,103560.0,103550.0,0.74312581]
[1747626998084,0.0763544,103560.0,103550.0,0.74312581]
[1747626998469,0.08600979,103560.0,103550.0,0.74312581]
[1747626998691,0.09566537,103560.0,103550.0,0.75321012]
[1747626998910,0.08600979,103560.0,103550.0,0.75321012]
[1747626999144,0.0763544,103560.0,103550.0,0.75321012]
[1747626999331,0.001,103560.0,103550.0,1.78298352]
[1747626999537,0.001,103560.0,103550.0,1.43548337]
[1747626999760,0.001,103560.0,103550.0,1.26957482]
[1747627000465,0.01930901,103570.0,103560.0,0.60989233]
[1747627000664,0.00965446,103570.0,103560.0,0.61037407]
[1747627001066,0.00965446,103570.0,103560.0,0.73037407]
[1747627001432,0.01930911,103570.0,103560.0,0.73037407]
[1747627001839,0.01930911,103570.0,103560.0,0.75406854]
[1747627002146,0.00965446,103570.0,103560.0,0.75506854]
[1747627002566,0.01930911,103570.0,103560.0,0.75506854]
[1747627002968,0.30706338,103580.0,103570.0,0.21241615]
[1747627003214,0.30706338,103580.0,103570.0,0.22207117]
[1747627003443,0.30706338,103580.0,103570.0,0.21241624]
[1747627003663,0.30706338,103580.0,103570.0,0.33241624]
[1747627003835,0.30706338,103580.0,103570.0,0.34207117]
[1747627004013,0.30706338,103580.0,103570.0,0.33241624]
[1747627004211,0.29740966,103580.0,103570.0,0.32276132]
[1747627004394,0.29740966,103580.0,103570.0,0.33241643]
[1747627004823,0.29740966,103580.0,103570.0,0.1296553]
[1747627005005,0.29840966,103580.0,103570.0,0.34812696]
[1747627005687,0.30040966,103580.0,103570.0,0.34812696]
[1747627006108,0.30040966,103580.0,103570.0,0.33847185]
[1747627006310,0.28110101,103580.0,103570.0,0.34812696]
[1747627006521,0.22505461,103580.0,103570.0,0.35778198]
[1747627006724,0.22505461,103580.0,103570.0,0.36743691]
[1747627007239,0.22505461,103580.0,103570.0,0.35778161]
[1747627007451,0.22505461,103580.0,103570.0,0.34812668]
[1747627007866,0.003,103580.0,103570.0,0.75453626]
[1747627008090,0.03196152,103580.0,103570.0,0.75453626]
[1747627008257,0.02230743,103580.0,103570.0,0.75453626]
[1747627008710,0.01265362,103580.0,103570.0,0.75453626]
[1747627008859,0.02130734,103580.0,103570.0,0.75453626]
[1747627009217,0.01930734,103580.0,103570.0,0.75453626]
[1747627009429,0.01930734,103580.0,103570.0,0.75653626]
[1747627009639,0.01930734,103580.0,103570.0,0.75753626]
[1747627009864,0.22202754,103590.0,103580.0,0.21239554]
[1747627010076,0.23168088,103590.0,103580.0,0.21239554]
[1747627010281,0.22202819,103590.0,103580.0,0.20274164]
[1747627010493,0.51759312,103600.0,103590.0,0.54272216]
[1747627010702,0.62455502,103600.0,103590.0,0.55237541]
[1747627010908,0.44265956,103600.0,103590.0,0.34965344]
[1747627011654,0.34535016,103600.0,103590.0,0.56808408]
[1747627011857,0.0236,103600.0,103590.0,0.55843009]
[1747627012074,0.42507975,103600.0,103590.0,0.34605523]
[1747627012319,0.42266649,103600.0,103590.0,0.00605523]
[1747627012502,1.06312009,103600.0,103590.0,0.00605523]
[1747627012717,1.40312009,103600.0,103590.0,0.00605523]
[1747627012949,1.17948734,103600.0,103590.0,0.00605523]
[1747627013098,0.82594649,103600.0,103590.0,0.00605523]
[1747627013294,0.2220709,103570.0,103560.0,0.33291748]
[1747627013508,0.4232309,103570.0,103560.0,0.32326162]
[1747627013721,0.4232309,103570.0,103560.0,0.34257353]
[1747627013722,0.21081465,103570.0,103560.0,0.34257353]
[1747627013918,0.4232308,103570.0,103560.0,0.68257353]
[1747627014269,0.43288601,103570.0,103560.0,0.68257353]
[1747627014456,0.43288601,103570.0,103560.0,0.68257362]
[1747627014863,0.43288601,103570.0,103560.0,0.69222948]
[1747627015067,0.44254131,103570.0,103560.0,0.69826549]
[1747627015211,0.43288666,103570.0,103560.0,0.69826549]
[1747627015415,0.43288666,103570.0,103560.0,0.70792126]
[1747627015612,0.23012422,103570.0,103560.0,0.7079207]
[1747627015930,0.23012422,103570.0,103560.0,0.7089207]
[1747627016134,0.43288628,103570.0,103560.0,0.6702992]
[1747627016343,0.43288628,103570.0,103560.0,0.67995515]
[1747627016543,0.43288628,103570.0,103560.0,0.6702992]
[1747627016741,0.42323154,103570.0,103560.0,0.67995524]
[1747627016943,0.42323154,103570.0,103560.0,0.67029929]
[1747627017140,0.41357652,103570.0,103560.0,0.47507333]
[1747627017349,0.41357652,103570.0,103560.0,0.35507333]
[1747627017350,0.55838592,103570.0,103560.0,0.35507333]
[1747627020600,0.55838592,103570.0,103560.0,0.3475184]
[1747627021031,0.55838592,103570.0,103560.0,0.55029929]
[1747627021226,0.35722592,103570.0,103560.0,0.55029929]
[1747627021431,0.4231507,103570.0,103560.0,0.55995524]
[1747627021650,0.42315108,103570.0,103560.0,0.55995524]
[1747627021800,0.42315108,103570.0,103560.0,0.55029929]
[1747627021801,0.42315155,103570.0,103560.0,0.55029929]
[1747627022012,0.42315155,103570.0,103560.0,0.55995534]
[1747627022221,0.42315155,103570.0,103560.0,0.55029929]
[1747627022467,0.41349662,103570.0,103560.0,0.55029929]
[1747627022896,0.41349662,103570.0,103560.0,0.56961111]
[1747627023095,0.22038948,103570.0,103560.0,0.69926669]
[1747627023301,0.4231507,103570.0,103560.0,0.68961111]
[1747627023415,0.43280591,103570.0,103560.0,0.68961129]
[1747627023631,0.43280591,103570.0,103560.0,0.69926715]
[1747627023994,0.44246121,103570.0,103560.0,0.70892292]
[1747627024193,0.43280656,103570.0,103560.0,0.70892292]
[1747627024403,0.42315173,103570.0,103560.0,0.71690639]
[1747627025427,0.42315173,103570.0,103560.0,0.72656216]
[1747627025792,0.42315173,103570.0,103560.0,0.72656169]
[1747627026006,0.41349643,103570.0,103560.0,0.72656169]
[1747627026215,0.42315173,103570.0,103560.0,0.72656169]
[1747627026615,0.42315173,103570.0,103560.0,0.71690602]
[1747627026978,0.42315173,103570.0,103560.0,0.68793853]
[1747627027137,0.42315173,103570.0,103560.0,0.69759458]
[1747627027354,0.42315173,103570.0,103560.0,0.69003965]
[1747627030239,0.41349662,103570.0,103560.0,0.68038369]
[1747627031162,0.41349662,103570.0,103560.0,0.69003983]
[1747627031367,0.41349662,103570.0,103560.0,0.69969578]
[1747627031616,0.41349662,103570.0,103560.0,0.70935164]
[1747627031822,0.21073493,103570.0,103560.0,0.71900741]
[1747627032021,0.43280582,103570.0,103560.0,0.70935118]
[1747627032434,0.22207117,103570.0,103560.0,0.69969541]
[1747627033663,0.22207117,103570.0,103560.0,0.70935118]
[1747627034163,0.24138168,103570.0,103560.0,0.71900685]
[1747627035489,0.23172675,103570.0,103560.0,0.71900685]
[1747627035701,0.22207173,103570.0,103560.0,0.69003955]
[1747627035900,0.22207173,103570.0,103560.0,0.69969541]
[1747627036531,0.21241662,103570.0,103560.0,0.69969541]
[1747627036691,0.21241662,103570.0,103560.0,0.70935118]
[1747627037527,0.21241662,103570.0,103560.0,0.69969541]
[1747627037882,0.21241662,103570.0,103560.0,0.70935118]
[1747627039140,0.20276141,103570.0,103560.0,0.6803836]
[1747627039484,0.20276141,103570.0,103560.0,0.69003955]
[1747627041425,0.20276141,103570.0,103560.0,0.69969541]
[1747627041780,0.00965474,103570.0,103560.0,0.70935099]
[1747627041988,0.00965446,103570.0,103560.0,0.69969439]
[1747627042520,0.01930911,103570.0,103560.0,0.69969439]
[1747627042724,0.02896385,103570.0,103560.0,0.69969439]
[1747627042925,0.01930911,103570.0,103560.0,0.74699439]
[1747627043130,0.02896394,103570.0,103560.0,0.74699439]
[1747627043325,0.22204916,103580.0,103570.0,0.55241625]
[1747627043479,0.22204916,103580.0,103570.0,0.56207099]
[1747627043667,0.22204916,103580.0,103570.0,0.55241625]
[1747627043870,0.22204916,103580.0,103570.0,0.67241625]
[1747627044275,0.4680082,103590.0,103580.0,0.54274164]
[1747627044479,0.5653176,103590.0,103580.0,0.55239564]
[1747627044736,0.57497066,103590.0,103580.0,0.56204945]
[1747627044899,0.47766126,103590.0,103580.0,0.55843165]
[1747627045119,0.46800848,103590.0,103580.0,0.56808555]
[1747627045310,0.46800848,103590.0,103580.0,0.55843165]
[1747627045550,0.45835542,103590.0,103580.0,0.54877765]
[1747627045815,0.44970226,103590.0,103580.0,0.54877765]
[1747627046570,0.44970226,103590.0,103580.0,0.5663028]
[1747627046775,0.44004882,103590.0,103580.0,0.5763873]
[1747627046972,0.44204882,103590.0,103580.0,0.38329984]
[1747627047196,0.44204882,103590.0,103580.0,0.58604158]
[1747627047399,0.44204882,103590.0,103580.0,0.50329984]
[1747627047857,0.44204882,103590.0,103580.0,0.70604158]
[1747627048166,0.44204882,103590.0,103580.0,0.71569576]
[1747627049434,0.44204882,103590.0,103580.0,0.70604158]
[1747627050446,0.45170226,103590.0,103580.0,0.59569576]
[1747627050901,0.45170226,103590.0,103580.0,0.60534985]
[1747627051074,0.40680226,103590.0,103580.0,0.73500385]